bitfinex/quotes_ETHUSD_20251218
["timestamp","ask_amount","ask_price","bid_price","bid_amount"]
[1766048608390,2.6516,2841.9,2841.0,0.8166]
[1766048608609,4.07567764,2842.0,2841.0,0.8166]
[1766048608813,2.6516,2841.9,2841.0,0.8166]
[1766048609014,4.83510403,2842.0,2841.0,0.8166]
[1766048609222,2.6516,2841.9,2841.0,0.8166]
[1766048609439,0.9623,2841.8,2841.0,0.8166]
[1766048609640,2.6516,2841.8,2841.0,0.8166]
[1766048609937,1.6893,2841.8,2841.0,0.8166]
[1766048610217,3.2086,2842.0,2841.0,0.8166]
[1766048610438,3.2086,2842.0,2841.1,0.04569982]
[1766048610590,3.2086,2842.0,2841.2,0.8258]
[1766048610786,3.88131193,2842.0,2841.2,0.8258]
[1766048610989,2.6516,2841.9,2841.2,0.8258]
[1766048611633,0.9623,2841.9,2841.2,0.8258]
[1766048611792,2.6516,2841.8,2841.2,0.8258]
[1766048612229,1.6893,2841.8,2841.2,0.8258]
[1766048612401,3.88131193,2842.0,2841.2,0.8258]
[1766048613136,3.2086,2842.0,2841.2,0.8258]
[1766048614396,2.6516,2842.0,2841.2,0.8258]
[1766048615116,1.6893,2841.9,2841.2,0.8258]
[1766048615930,1.6893,2841.9,2841.0,0.8718]
[1766048615931,1.6893,2841.7,2841.0,0.8718]
[1766048616235,2.68505465,2841.6,2841.0,0.8718]
[1766048616416,2.6516,2841.6,2841.0,0.8718]
[1766048617028,2.6516,2841.6,2841.0,0.8788]
[1766048617029,1.95446,2841.6,2841.0,0.8788]
[1766048617529,2.6516,2841.3,2841.0,0.002]
[1766048617711,1.6893,2841.2,2841.0,0.002]
[1766048618037,2.6516,2841.3,2841.0,0.002]
[1766048618336,1.5193,2841.8,2841.0,0.8857]
[1766048618535,2.19204088,2841.8,2841.0,0.8857]
[1766048618692,2.19204088,2841.8,2841.2,0.8837]
[1766048619129,0.9623,2841.6,2841.0,0.002]
[1766048619426,2.6516,2841.3,2841.0,0.002]
[1766048619624,1.6893,2841.2,2841.0,0.002]
[1766048619796,2.6516,2841.2,2841.0,0.002]
[1766048620225,1.6893,2841.3,2841.0,0.002]
[1766048620728,2.6516,2841.4,2841.0,0.002]
[1766048621327,1.6893,2841.3,2841.0,0.002]
[1766048621625,3.5192987,2841.5,2841.0,0.002]
[1766048621829,3.51902734,2841.7,2841.0,0.002]
[1766048621830,1.6893,2841.6,2841.0,0.002]
[1766048622036,3.51907357,2841.7,2841.0,0.002]
[1766048622037,2.636,2841.3,2841.0,0.002]
[1766048622529,7.03814714,2841.7,2841.0,0.002]
[1766048622711,0.59045465,2841.6,2841.0,0.002]
[1766048622907,0.557,2841.6,2840.6,0.04569982]
[1766048623097,1.657,2841.2,2840.6,0.04569982]
[1766048623297,2.636,2841.2,2840.6,0.04569982]
[1766048623832,4.27882509,2841.5,2840.6,0.04569982]
[1766048624034,4.27882509,2841.5,2840.2,1.02159982]
[1766048624035,2.636,2841.3,2840.2,1.02159982]
[1766048624225,1.52782949,2841.2,2840.2,1.02159982]
[1766048624606,1.657,2840.9,2840.2,1.02159982]
[1766048624999,1.657,2840.8,2840.2,1.02159982]
[1766048625327,2.636,2840.8,2840.2,1.02159982]
[1766048625528,1.657,2840.7,2839.9,1.02899982]
[1766048625698,1.657,2840.5,2839.9,1.02899982]
[1766048625901,2.636,2840.5,2840.0,0.9906]
[1766048626633,2.636,2840.3,2840.0,0.002]
[1766048626823,1.657,2840.9,2840.1,0.04569982]
[1766048627020,0.979,2840.8,2840.1,0.04569982]
[1766048627325,1.657,2840.7,2840.1,0.04569982]
[1766048627505,1.657,2840.7,2840.1,0.04769982]
[1766048627835,1.657,2840.6,2840.1,0.04769982]
[1766048628024,0.2636,2840.7,2840.1,0.04769982]
[1766048628332,0.979,2840.5,2840.1,0.002]
[1766048628532,2.636,2840.3,2840.1,0.002]
[1766048628740,2.8996,2840.3,2840.0,0.002]
[1766048628905,2.636,2840.3,2840.0,0.002]
[1766048629220,0.979,2840.3,2840.0,0.002]
[1766048629410,2.636,2840.1,2839.9,0.001]
[1766048629611,2.636,2840.1,2838.9,0.407504]
[1766048629612,1.05583488,2840.6,2839.0,0.002]
[1766048629613,0.979,2839.8,2839.0,0.002]
[1766048629812,0.979,2839.8,2837.6,0.558]
[1766048629813,1.657,2839.0,2838.1,1.0062]
[1766048630005,2.636,2838.7,2837.6,0.14112657]
[1766048630202,0.558,2838.6,2837.7,1.0062]
[1766048630728,0.558,2838.6,2837.9,1.0062]
[1766048631101,1.657,2839.1,2838.0,0.04569982]
[1766048631308,0.59145465,2839.0,2838.1,1.0062]
[1766048631532,0.558,2839.0,2838.1,1.0062]
[1766048633228,0.558,2838.9,2838.1,1.0062]
[1766048633432,0.558,2838.8,2838.1,1.0062]
[1766048634511,0.558,2838.7,2838.1,1.0062]
[1766048634748,3.10038023,2839.5,2838.3,1.0062]
[1766048634925,0.558,2839.4,2838.3,1.0062]
[1766048635448,3.10038023,2839.3,2838.3,1.0062]
[1766048635621,1.81256372,2839.3,2838.3,1.0062]
[1766048635825,1.657,2839.2,2838.3,1.0062]
[1766048636232,5.17912788,2839.2,2838.3,1.0062]
[1766048636438,6.15812788,2839.2,2838.3,1.0062]
[1766048636652,6.15812279,2839.2,2838.3,1.0062]
[1766048636822,0.979,2839.1,2838.3,1.0062]
[1766048637022,3.194,2839.1,2838.3,1.0062]
[1766048639143,1.657,2839.1,2838.3,1.0062]
[1766048639344,0.558,2839.1,2838.3,1.0062]
[1766048640149,3.194,2839.1,2838.3,1.0062]
[1766048640721,0.558,2839.1,2838.3,1.0062]
[1766048641258,3.98638167,2839.3,2838.3,1.0062]
[1766048641428,1.657,2839.2,2838.3,1.0062]
[1766048641631,1.657,2839.2,2838.1,0.04569982]
[1766048641632,7.04126178,2840.4,2838.5,1.0062]
[1766048641861,2.636,2839.9,2838.7,1.0062]
[1766048642153,7.04126178,2840.4,2838.7,1.0062]
[1766048642154,1.657,2839.4,2838.7,1.0062]
[1766048642532,3.52149874,2839.7,2838.7,1.0062]
[1766048642533,2.12138023,2839.6,2838.7,1.0062]
[1766048642722,1.57233777,2839.5,2838.7,1.0062]
[1766048643432,3.22933777,2839.5,2838.7,1.0062]
[1766048643618,0.46438023,2839.6,2838.7,1.0062]
[1766048643962,0.558,2839.5,2838.9,1.0062]
[1766048644158,0.03345465,2839.4,2838.9,1.0062]
[1766048644363,2.636,2839.3,2838.5,1.0062]
[1766048644563,0.979,2839.3,2838.5,1.0062]
[1766048644723,1.657,2839.2,2838.5,1.0062]
[1766048645052,1.657,2839.1,2838.1,1.0062]
[1766048645259,2.636,2838.9,2838.1,1.0062]
[1766048646325,6.15850477,2838.9,2838.1,1.0062]
[1766048646757,0.46438023,2838.8,2838.1,1.0062]
[1766048647861,0.46438023,2839.0,2838.3,1.0062]
[1766048648060,2.215,2839.1,2838.3,1.0062]
[1766048648356,0.46438023,2839.2,2838.3,1.0062]
[1766048648357,4.54451517,2839.2,2838.3,1.0062]
[1766048648536,0.46358023,2839.2,2838.6,1.0062]
[1766048648930,6.19160037,2839.2,2838.6,1.0062]
[1766048649230,1.657,2839.1,2838.3,1.0062]
[1766048649431,0.001,2839.0,2838.3,1.0062]
[1766048649633,0.03445465,2839.0,2838.3,1.0062]
[1766048650134,3.98598832,2840.3,2838.6,0.04569982]
[1766048650335,1.657,2840.0,2838.6,0.04569982]
[1766048650663,1.657,2839.8,2838.6,0.04569982]
[1766048650864,1.657,2839.6,2838.6,0.04569982]
[1766048651836,2.216,2839.6,2838.6,0.04569982]
[1766048652037,0.559,2839.7,2838.9,0.04569982]
[1766048652854,0.46438023,2839.8,2838.9,0.04569982]
[1766048653036,0.001,2840.2,2839.5,0.04569982]
[1766048653439,6.36088713,2840.2,2839.5,0.04569982]
[1766048653634,0.46438023,2840.1,2839.5,0.04569982]
[1766048654050,2.84,2840.2,2839.5,0.04569982]
[1766048654370,0.001,2840.3,2839.9,0.04569982]
[1766048654671,2.84,2840.3,2839.9,0.04569982]
[1766048655070,0.001,2840.3,2839.7,0.04569982]
[1766048655265,0.001,2840.3,2839.9,0.04569982]
[1766048657473,2.84,2840.3,2839.9,0.04569982]
[1766048658445,2.84,2840.3,2839.7,0.04569982]
[1766048658446,0.001,2840.3,2840.0,0.04569982]
[1766048658868,2.839,2840.9,2840.0,0.04569982]
[1766048659071,2.839,2840.9,2840.2,0.04569982]
[1766048659072,6.99490683,2840.9,2840.2,0.04569982]
[1766048659271,0.46438023,2840.8,2840.2,0.04569982]
[1766048659590,1.58848023,2840.8,2840.2,0.04569982]
[1766048659769,3.30338023,2840.8,2840.2,0.04569982]
[1766048660584,3.52025909,2840.7,2840.2,0.04569982]
[1766048660756,2.839,2840.6,2840.2,0.04569982]
[1766048663074,3.30338023,2840.8,2840.2,0.04569982]
[1766048663259,3.30338023,2840.7,2840.4,0.04569982]
[1766048663463,3.398,2841.1,2840.5,0.04569982]
[1766048663785,0.46438023,2840.9,2840.6,0.04569982]
[1766048663955,1.58848023,2841.0,2840.6,0.04569982]
[1766048664163,0.001,2841.3,2840.8,0.04569982]
[1766048664464,1.1241,2841.1,2840.8,0.04569982]
[1766048664669,2.839,2841.1,2840.8,0.04569982]
[1766048665662,3.52057503,2841.3,2840.8,0.04569982]
[1766048665663,0.46538023,2841.3,2840.8,0.04569982]
[1766048665855,0.001,2841.3,2840.8,0.04569982]
[1766048666054,0.001,2841.3,2840.6,0.04569982]
[1766048666286,0.001,2841.3,2840.3,0.04569982]
[1766048666287,4.20309671,2841.3,2840.3,0.04569982]
[1766048666473,2.839,2841.1,2840.3,0.04569982]
[1766048667093,6.35884697,2841.1,2840.3,0.04569982]
[1766048667587,3.51984697,2841.1,2840.3,0.04569982]
[1766048667790,3.54294994,2841.0,2840.3,0.04569982]
[1766048668588,2.839,2840.9,2840.3,0.04569982]
[1766048670308,0.03345465,2840.8,2840.3,0.04569982]
[1766048670478,2.839,2840.5,2840.1,0.04569982]
[1766048670880,7.04004818,2840.9,2839.9,0.04569982]
[1766048671203,2.839,2840.4,2839.4,0.04569982]
[1766048671559,1.7149,2840.4,2839.9,0.04569982]
[1766048671791,2.839,2840.4,2839.9,0.04569982]
[1766048672464,3.52029601,2840.7,2840.1,0.002]
[1766048672776,1.7149,2840.4,2840.1,0.002]
[1766048673082,3.52029601,2840.7,2840.1,0.002]
[1766048673264,2.8382,2840.6,2840.1,0.002]
[1766048673463,1.7149,2840.6,2840.1,0.002]
[1766048674974,3.52015376,2840.8,2840.1,0.002]
[1766048675183,5.23505376,2840.8,2840.1,0.002]
[1766048675392,6.35915376,2840.8,2840.1,0.002]
[1766048676098,0.001,2840.9,2840.2,0.04569982]
[1766048676278,0.46438023,2840.8,2840.2,0.04569982]
[1766048676472,0.46538023,2840.9,2840.4,0.04569982]
[1766048676705,0.001,2840.9,2840.5,0.04569982]
[1766048677609,3.98409309,2841.2,2840.5,0.04569982]
[1766048677992,5.01853683,2841.2,2840.5,0.04569982]
[1766048678491,7.85753683,2841.2,2840.5,0.04569982]
[1766048680112,4.33784143,2841.2,2840.5,0.04569982]
[1766048680313,3.30338023,2841.2,2840.5,0.04569982]
[1766048680611,6.82303066,2841.2,2840.7,0.04569982]
[1766048680811,2.839,2841.1,2840.7,0.04569982]
[1766048681316,1.7149,2842.0,2840.9,0.04569982]
[1766048681613,1.7149,2842.0,2840.9,0.08089993]
[1766048681814,1.7149,2842.2,2841.0,0.405504]
[1766048682117,3.51931552,2842.3,2841.2,0.405504]
[1766048682118,0.001,2842.3,2841.2,0.405504]
[1766048682316,0.001,2842.3,2842.0,0.04569982]
[1766048682688,0.001,2842.4,2842.0,0.04569982]
[1766048682884,0.001,2842.5,2842.0,0.04569982]
[1766048683305,0.001,2842.6,2842.0,0.04569982]
[1766048683505,0.001,2842.6,2842.2,0.04569982]
[1766048684306,0.001,2842.6,2842.4,0.04569982]
[1766048686018,0.001,2842.6,2841.6,0.04569982]
[1766048686019,2.929,2842.5,2841.6,0.04569982]
[1766048686315,2.929,2842.4,2841.8,0.04569982]
[1766048687022,0.001,2842.6,2841.8,0.04569982]
[1766048687023,2.93,2842.6,2841.8,0.04569982]
[1766048687218,2.93,2842.6,2842.0,0.04569982]
[1766048687603,6.44792464,2842.6,2842.0,0.04569982]
[1766048687803,6.44792464,2842.6,2841.8,0.04569982]
[1766048687804,2.929,2842.5,2841.8,0.04569982]
[1766048689425,2.929,2842.4,2841.8,0.04569982]
[1766048693742,0.64479246,2842.5,2841.8,0.04569982]
[1766048693743,2.929,2842.5,2841.8,0.04569982]
[1766048694110,1.2328,2842.5,2841.8,0.04569982]
[1766048694311,1.6962,2842.4,2841.8,0.04569982]
[1766048694545,2.929,2842.4,2841.8,0.04569982]
[1766048695538,0.001,2842.6,2842.0,0.04569982]
[1766048695709,2.93,2842.6,2842.0,0.04569982]
[1766048696243,3.9265494,2842.6,2841.8,0.04569982]
[1766048696414,3.9265494,2842.6,2842.0,0.04569982]
[1766048696817,0.001,2842.4,2842.0,0.04569982]
[1766048698023,0.0002,2842.4,2842.0,0.04569982]
[1766048698432,0.0002,2842.4,2841.8,0.04569982]
[1766048699047,0.0002,2842.4,2842.0,0.04569982]
[1766048699845,0.0002,2842.4,2841.8,0.04569982]
[1766048700045,0.0002,2842.4,2842.0,0.04569982]
[1766048701044,1.6964,2842.4,2841.8,0.04569982]
[1766048701247,2.9292,2842.4,2841.8,0.04569982]
[1766048701846,0.0002,2842.4,2841.8,0.04569982]
[1766048702022,0.0002,2842.4,2842.0,0.04569982]
[1766048703250,2.929,2842.3,2842.0,0.04569982]
[1766048703630,0.0002,2842.4,2842.0,0.04569982]
[1766048704651,1.233,2842.4,2842.0,0.04569982]
[1766048704823,2.9292,2842.4,2842.0,0.04569982]
[1766048706050,2.9292,2842.4,2841.8,0.04769982]
[1766048706051,0.03345465,2842.3,2841.8,0.002]
[1766048706352,1.2328,2842.1,2841.8,0.002]
[1766048706522,2.929,2842.1,2841.8,0.002]
[1766048706948,4.16334216,2842.4,2841.8,0.002]
[1766048707152,2.929,2842.3,2841.8,0.002]
[1766048709255,6.44727944,2842.3,2841.8,0.002]
[1766048709455,2.929,2842.2,2841.8,0.002]
[1766048710239,3.51840312,2842.2,2841.8,0.002]
[1766048710554,1.6962,2842.0,2841.8,0.002]
[1766048710849,2.929,2842.0,2841.8,0.002]
[1766048711054,2.929,2842.2,2841.8,0.002]
[1766048711625,1.6962,2842.1,2841.8,0.002]
[1766048711820,2.929,2842.0,2841.8,0.002]
[1766048713150,2.936,2842.1,2841.8,0.002]
[1766048713350,1.1848,2842.0,2841.8,0.002]
[1766048713656,2.936,2842.0,2841.8,0.002]
[1766048714047,4.57949365,2842.3,2841.8,0.002]
[1766048714355,2.936,2842.1,2841.8,0.002]
[1766048715754,6.45436574,2842.4,2841.9,0.04569982]
[1766048716056,2.936,2842.3,2841.8,0.002]
[1766048716350,1.7512,2842.2,2841.8,0.002]
[1766048717226,2.936,2842.3,2841.8,0.002]
[1766048718956,1.7512,2842.2,2841.8,0.002]
[1766048719154,2.936,2842.2,2841.8,0.002]
[1766048720460,2.9362,2842.4,2841.8,0.002]
[1766048721859,0.29402,2842.4,2841.8,0.002]
[1766048722160,1.1848,2842.1,2840.6,0.002]
[1766048722359,0.46438023,2841.5,2840.6,0.002]
[1766048722562,7.03828828,2841.6,2840.6,0.002]
[1766048722563,2.936,2841.3,2840.6,0.002]
[1766048722749,3.51914414,2841.6,2840.6,0.002]
[1766048722750,0.46438023,2841.6,2840.6,0.002]
[1766048722932,3.51895171,2841.8,2840.6,0.002]
[1766048723235,0.46438023,2841.9,2840.6,0.56]
[1766048723435,0.46438023,2841.9,2840.7,7.10422573]
[1766048723636,0.46438023,2841.9,2841.1,0.04569982]
[1766048724551,0.46438023,2841.8,2841.1,0.04569982]
[1766048725848,0.46438023,2841.9,2841.1,0.04569982]
[1766048726053,0.46438023,2841.9,2841.3,0.04569982]
[1766048726263,0.46438023,2841.9,2841.1,0.04569982]
[1766048726264,0.03345465,2841.8,2841.1,0.04569982]
[1766048726463,2.936,2841.5,2840.7,0.04569982]
[1766048726652,1.7512,2841.4,2840.7,0.04569982]
[1766048728288,6.4550203,2841.7,2840.7,0.04569982]
[1766048728772,3.93349489,2841.7,2840.9,0.04569982]
[1766048729086,1.7522,2841.9,2841.1,0.04569982]
[1766048729246,0.46538023,2841.9,2841.1,0.04569982]
[1766048729451,0.46538023,2841.9,2841.3,0.04569982]
[1766048729687,0.001,2841.9,2841.3,0.04569982]
[1766048742999,0.001,2841.9,2841.5,0.04569982]
[1766048743178,0.46438023,2842.2,2841.5,0.04569982]
[1766048743993,3.51833862,2842.3,2841.5,0.04569982]
[1766048744171,3.51833862,2842.3,2841.5,0.72491196]
[1766048745202,0.46438023,2842.3,2841.5,0.72491196]
[1766048745872,3.5183608,2842.4,2841.7,0.04569982]
[1766048746073,3.5183608,2842.4,2841.7,0.60369982]
[1766048747594,3.5175608,2842.4,2841.7,0.60369982]
[1766048749471,0.001,2842.3,2841.7,0.60369982]
[1766048753605,0.001,2842.3,2841.7,0.558]
[1766048753908,3.0203,2842.1,2841.7,0.558]
[1766048754076,4.02709241,2842.3,2841.7,0.558]
[1766048756907,7.5454752,2842.3,2841.7,0.558]
[1766048759385,5.26008279,2842.3,2841.7,0.558]
[1766048759906,0.001,2842.3,2841.7,0.558]
[1766048760279,3.51928807,2842.3,2841.7,0.558]
[1766048760483,0.001,2842.3,2841.7,0.558]
[1766048760710,0.001,2842.5,2842.0,0.04569982]
[1766048760910,0.001,2842.6,2842.0,0.04569982]
[1766048761417,3.51855621,2842.9,2842.2,0.04569982]
[1766048761582,0.46438023,2842.8,2842.2,0.04569982]
[1766048761781,0.46438023,2842.8,2842.2,1.28211739]
[1766048762007,0.46438023,2842.8,2842.2,0.60369982]
[1766048762381,0.001,2842.9,2842.2,0.60369982]
[1766048762578,3.982933,2842.9,2842.2,7.29647592]
[1766048763188,0.001,2843.1,2842.3,0.405504]
[1766048763402,3.51829351,2843.1,2842.3,7.0982801]
[1766048763605,0.001,2843.1,2842.6,0.04569982]
[1766048763836,0.001,2843.1,2842.2,0.558]
[1766048763837,6.6927761,2843.0,2842.2,0.558]
[1766048764000,6.6927761,2843.0,2841.6,0.45320382]
[1766048764001,1.2796,2842.7,2841.7,0.46438023]
[1766048764198,3.0203,2842.5,2842.1,0.558]
[1766048764427,3.0203,2842.5,2842.0,0.60369982]
[1766048764628,0.001,2842.4,2842.0,0.60369982]
[1766048765009,0.001,2842.4,2842.0,0.558]
[1766048765406,0.001,2842.4,2842.0,0.60369982]
[1766048765828,3.51762897,2842.9,2842.0,0.60369982]
[1766048766338,3.0203,2842.8,2842.0,0.60369982]
[1766048767105,5.25847285,2842.8,2842.0,1.3845598]
[1766048767332,3.0203,2842.6,2842.0,1.3845598]
[1766048767801,3.0203,2842.6,2842.0,1.33885998]
[1766048768026,1.7407,2842.3,2842.0,0.558]
[1766048768230,3.0203,2842.3,2842.0,0.558]
[1766048768737,1.2796,2842.4,2842.0,0.558]
[1766048768943,3.0203,2842.4,2842.0,0.558]
[1766048770410,0.46438023,2842.9,2842.0,7.25281996]
[1766048770616,0.46438023,2842.9,2842.1,0.77098182]
[1766048770815,3.48468023,2842.9,2842.1,0.77098182]
[1766048771128,3.48468023,2842.9,2842.1,0.04569982]
[1766048771331,0.001,2842.6,2842.1,0.04569982]
[1766048772036,3.51765864,2842.8,2842.1,0.04569982]
[1766048772209,6.48605864,2842.8,2842.1,0.04569982]
[1766048773207,3.027,2842.7,2842.1,0.04569982]
[1766048773412,3.06045465,2842.6,2842.1,0.04569982]
[1766048773612,3.027,2842.6,2842.0,0.56]
[1766048773813,3.51685864,2842.8,2842.0,0.56]
[1766048774013,6.54385864,2842.8,2842.0,0.56]
[1766048774214,3.027,2842.7,2842.0,0.56]
[1766048774412,3.51685864,2842.8,2842.1,0.04569982]
[1766048775142,6.54385864,2842.8,2842.1,0.04569982]
[1766048775343,3.98197563,2842.9,2842.1,0.04569982]
[1766048775529,3.98197563,2842.9,2842.3,0.04569982]
[1766048775728,7.00897563,2842.9,2842.3,0.04569982]
[1766048776615,3.98197563,2842.9,2842.3,0.04569982]
[1766048776938,3.028,2843.1,2842.3,0.04569982]
[1766048777152,3.51693075,2843.4,2842.7,6.74051978]
[1766048777460,7.034711,2843.5,2842.8,1.23105198]
[1766048777755,0.46438023,2843.4,2842.8,0.557]
[1766048779137,0.03345465,2843.3,2842.8,0.557]
[1766048779321,6.54404005,2843.3,2842.8,0.557]
[1766048779527,3.027,2843.2,2842.8,0.557]
[1766048779724,6.69481996,2843.1,2842.3,0.04569982]
[1766048779929,3.027,2842.9,2842.3,0.04569982]
[1766048780125,1.358,2842.9,2842.1,0.60269982]
[1766048780326,3.027,2842.6,2842.1,0.60269982]
[1766048780641,3.027,2843.1,2842.1,0.60269982]
[1766048781232,0.49783488,2843.2,2842.1,0.60269982]
[1766048781549,3.027,2842.9,2842.1,1.3732022]
[1766048781921,3.51741118,2843.0,2842.3,0.04569982]
[1766048782123,4.87533719,2843.1,2842.3,0.04569982]
[1766048782819,3.51733719,2843.1,2842.4,0.405504]
[1766048783023,6.54433719,2843.1,2842.4,0.405504]
[1766048784550,0.46438023,2843.2,2842.5,6.74051978]
[1766048784744,0.001,2843.5,2842.7,6.74051978]
[1766048785052,0.001,2843.5,2842.9,0.04569982]
[1766048787118,0.001,2843.1,2842.9,0.04569982]
[1766048795256,3.51754654,2843.7,2843.0,6.69481996]
[1766048795455,0.001,2843.7,2843.1,0.04569982]
[1766048795660,0.001,2843.7,2843.2,0.67405198]
[1766048795834,0.001,2843.8,2843.3,0.04569982]
[1766048796930,0.0002,2843.8,2843.3,0.04569982]
[1766048797134,0.001,2844.3,2843.6,6.69481996]
[1766048797432,0.001,2844.3,2843.7,0.669482]
[1766048797832,0.46438023,2844.5,2843.8,0.557]
[1766048798233,6.54346071,2844.6,2843.8,7.25181996]
[1766048798429,0.001,2844.6,2844.0,0.04569982]
[1766048798632,6.54343274,2844.6,2844.0,0.04569982]
[1766048799356,7.54941066,2844.6,2844.0,0.04569982]
[1766048801380,1.358,2844.4,2843.8,0.557]
[1766048801586,1.669,2844.5,2843.8,0.557]
[1766048802067,1.669,2844.5,2843.9,0.04569982]
[1766048802756,3.51643274,2844.6,2843.9,0.04569982]
[1766048802957,0.001,2844.6,2844.0,0.72975198]
[1766048803456,0.001,2844.6,2844.1,0.04569982]
[1766048803457,0.001,2844.5,2844.1,0.04569982]
[1766048804116,0.001,2844.9,2844.3,0.04569982]
[1766048804255,3.1345,2845.2,2844.4,7.10032396]
[1766048804256,6.64922547,2845.2,2844.4,7.10032396]
[1766048804593,0.03345465,2845.1,2844.5,0.71460238]
[1766048804756,1.2925,2844.9,2844.2,0.557]
[1766048804952,1.2925,2844.9,2843.9,0.04569982]
[1766048804953,3.1345,2844.5,2843.9,0.04569982]
[1766048805197,0.03345465,2844.9,2843.6,0.002]
[1766048805198,6.69481996,2844.4,2843.6,0.002]
[1766048805356,1.8495,2844.5,2843.6,0.002]
[1766048805561,1.8495,2844.5,2843.7,7.41477176]
[1766048805993,1.2925,2844.8,2843.7,7.97177176]
[1766048806168,0.46438023,2844.9,2844.1,6.69481996]
[1766048806358,3.59888023,2844.9,2844.1,6.69481996]
[1766048806682,0.557,2845.1,2844.1,6.69481996]
[1766048806683,0.46438023,2845.1,2844.3,0.405504]
[1766048807087,3.1345,2845.2,2844.3,7.10032396]
[1766048807287,3.1345,2845.2,2844.4,0.04569982]
[1766048808603,6.64919783,2845.2,2844.4,0.04569982]
[1766048809264,0.46438023,2845.2,2844.4,0.04569982]
[1766048809459,0.46438023,2845.2,2844.5,0.71460238]
[1766048809866,0.46438023,2845.2,2844.5,1.27160238]
[1766048810502,3.51471406,2845.2,2844.5,1.27160238]
[1766048810706,3.97899728,2845.3,2844.5,1.27160238]
[1766048811063,0.001,2845.2,2844.5,1.27160238]
[1766048811562,0.001,2845.2,2844.5,0.557]
[1766048812312,3.1355,2845.2,2844.5,0.557]
[1766048812509,1.2925,2845.0,2844.5,0.557]
[1766048812666,3.1345,2845.0,2844.5,0.557]
[1766048812870,3.51481494,2845.1,2844.5,0.557]
[1766048812871,7.02962988,2845.1,2844.5,0.557]
[1766048813198,3.1345,2844.6,2844.3,0.557]
[1766048813395,1.2925,2844.6,2844.3,0.557]
[1766048813707,0.03345465,2844.6,2843.9,0.04569982]
[1766048813912,3.1345,2844.6,2844.0,0.557]
[1766048814818,1.2925,2844.6,2844.0,0.557]
[1766048815111,7.35978852,2844.6,2843.7,0.04569982]
[1766048815418,7.35978852,2844.6,2843.4,0.557]
[1766048815419,1.842,2843.8,2843.4,0.557]
[1766048815572,1.842,2843.9,2843.4,0.557]
[1766048815774,3.1345,2843.9,2843.4,0.557]
[1766048818096,3.1345,2843.9,2843.5,0.04669982]
[1766048819328,4.07483147,2844.3,2843.5,0.04669982]
[1766048819329,3.5159431,2844.2,2843.5,0.04669982]
[1766048819627,1.2925,2844.0,2843.5,0.04669982]
[1766048819796,3.1345,2844.0,2843.5,0.04669982]
[1766048820191,1.2925,2843.9,2843.5,0.04669982]
[1766048820592,3.1345,2843.9,2843.5,0.04669982]
[1766048821412,3.51615274,2844.1,2843.5,0.04669982]
[1766048821413,3.1345,2843.8,2843.5,0.001]
[1766048821725,3.1337,2843.8,2843.5,0.001]
[1766048822598,1.2925,2844.2,2843.5,0.001]
[1766048823432,3.51598211,2844.2,2843.5,0.001]
[1766048823643,1.842,2844.0,2843.5,0.001]
[1766048824141,3.1345,2844.0,2843.5,0.001]
[1766048824543,3.51598211,2844.2,2843.5,0.001]
[1766048824834,7.79106898,2844.2,2843.5,0.001]
[1766048825001,3.1345,2844.1,2843.5,0.001]
[1766048825198,1.2925,2844.0,2843.5,0.001]
[1766048825442,1.842,2844.1,2843.5,0.001]
[1766048825739,3.1345,2843.6,2843.2,0.557]
[1766048825943,1.2925,2843.6,2843.2,0.557]
[1766048826152,3.1345,2843.8,2843.2,0.557]
[1766048826440,0.75907868,2844.2,2843.3,0.45120382]
[1766048826441,3.1345,2844.2,2843.3,0.45120382]
[1766048826743,6.65045374,2844.2,2843.3,0.45120382]
[1766048827240,7.03190748,2844.2,2843.3,0.45120382]
[1766048827424,1.842,2844.1,2843.3,0.04569982]
[1766048827616,1.2925,2843.9,2843.5,0.001]
[1766048827812,1.2925,2843.9,2842.7,0.45120382]
[1766048827813,3.1345,2843.5,2842.7,0.45120382]
[1766048828016,3.1345,2843.5,2842.8,0.557]
[1766048828530,3.1345,2844.0,2843.1,0.04569982]
[1766048828834,3.6915,2844.0,2843.1,0.04569982]
[1766048829329,3.1345,2843.9,2843.1,0.04569982]
[1766048830031,6.65080623,2843.9,2843.1,0.04569982]
[1766048831610,3.1345,2843.8,2843.1,0.04569982]
[1766048832240,3.2367,2843.8,2843.1,0.04569982]
[1766048834241,3.51609225,2844.1,2843.2,0.405504]
[1766048834440,3.0617,2843.9,2843.2,0.405504]
[1766048834940,0.557,2844.2,2843.2,0.405504]
[1766048835129,3.0617,2844.1,2843.2,0.405504]
[1766048835443,3.0617,2844.1,2843.3,0.04569982]
[1766048835822,3.51782683,2844.3,2843.3,0.04569982]
[1766048836043,4.07482683,2844.3,2843.4,0.71406025]
[1766048836345,6.57952683,2844.3,2843.4,0.71406025]
[1766048836520,3.0617,2844.2,2843.4,0.71406025]
[1766048837343,7.03365366,2844.3,2843.4,0.71406025]
[1766048837647,3.0617,2844.2,2843.4,0.71406025]
[1766048838824,3.0617,2844.2,2843.5,0.04569982]
[1766048840334,3.51597577,2844.2,2843.4,0.71406025]
[1766048840520,3.51597577,2844.2,2843.4,0.405504]
[1766048840924,3.0617,2844.1,2843.4,0.405504]
[1766048843746,0.001,2844.2,2843.4,0.405504]
[1766048844255,3.0627,2844.2,2843.4,0.405504]
[1766048845456,6.57863502,2844.2,2843.4,0.405504]
[1766048845750,3.0627,2844.2,2843.4,0.405504]
[1766048846055,6.57864398,2844.2,2843.4,0.405504]
[1766048846254,3.0627,2844.2,2843.4,0.405504]
[1766048846422,3.51614748,2844.2,2843.4,0.405504]